[Event "Fagernes Chess Open 2025"]
[Site "Fagernes"]
[Date "2025.04.16"]
[Round "4.9"]
[White "Yilmaz, Kazim"]
[Black "Stokhaug, Jon Arne"]
[Result "1/2-1/2"]
[Annotator "NA RC"]
[ECO "D01"]
[WhiteElo "1818"]
[BlackElo "1871"]
[PlyCount "76"]
[EventDate "2025.04.12"]
[EventCountry "NOR"]
[SourceTitle "playchess.com"]
[Source "ChessBase"]
[SourceQuality "1"]
[TimeControl "40/6000+30:2400+30"]

1. Nf3 {[%emt 0:00:02]} Nf6 {[%emt 0:00:10]} 2. Nc3 {[%emt 0:00:06]} d5 {[%emt 0:00:05]} 3. d4 {[%emt 0:00:05]} c5 {[%emt 0:01:14]} 4. Bg5 {[%emt 0:00:13]} Ne4 {[%emt 0:06:55]} 5. e3 {[%emt 0:01:37]} Nxg5 {[%emt 0:05:03]} 6. Nxg5 {[%emt 0:00:09]} e6 {[%emt 0:00:11]} 7. Bb5+ {[%emt 0:00:14]} Nc6 {[%emt 0:00:57]} 8. Nf3 {[%emt 0:00:08]} Bd7 {[%emt 0:01:38]} 9. O-O {[%emt 0:00:10]} Be7 {[%emt 0:00:43]} 10. Re1 {[%emt 0:00:22]} cxd4 {[%emt 0:01:53]} 11. exd4 {[%emt 0:00:21]} O-O {[%emt 0:00:18]} 12. Qe2 {[%emt 0:00:37]} Bf6 {[%emt 0:03:05]} 13. Rad1 {[%emt 0:01:22]} a6 {[%emt 0:03:41]} 14. Bxc6 {[%emt 0:01:17]} Bxc6 {[%emt 0:00:30]} 15. Ne5 {[%emt 0:00:11]} Qb6 {[%emt 0:02:13]} 16. b3 {[%emt 0:02:27]} Rac8 {[%emt 0:02:22]} 17. Nb1 {[%emt 0:02:01]} Rfd8 {[%emt 0:03:07]} 18. c3 {[%emt 0:01:31]} Qc7 {[%emt 0:05:34]} 19. Qb2 {[%emt 0:00:23]} b5 {[%emt 0:02:10]} 20. Nd2 {[%emt 0:00:24]} Bxe5 {[%emt 0:01:02]} 21. Rxe5 {[%emt 0:00:14]} Bd7 {[%emt 0:00:53]} 22. Rc1 {[%emt 0:01:15]} Qb6 {[%emt 0:04:11]} 23. b4 {[%emt 0:00:47]} Rc7 {[%emt 0:02:02]} 24. Nb3 {[%emt 0:00:10]} Ra8 {[%emt 0:01:41]} 25. Nc5 {[%emt 0:00:30]} Qc6 {[%emt 0:07:31]} 26. Rce1 {[%emt 0:00:57]} a5 {[%emt 0:00:58]} 27. a3 {[%emt 0:00:16]} axb4 {[%emt 0:02:58]} 28. axb4 {[%emt 0:00:11]} Rca7 {[%emt 0:00:07]} 29. Qe2 {[%emt 0:01:09]} Bc8 {[%emt 0:03:59]} 30. f4 {[%emt 0:01:19]} h6 {[%emt 0:03:27]} 31. Qf2 {[%emt 0:00:37]} Ra1 {[%emt 0:04:23]} 32. Rxa1 {[%emt 0:00:21]} Rxa1+ {[%emt 0:00:07]} 33. Re1 {[%emt 0:00:08]} Ra3 {[%emt 0:00:42]} 34. Re3 {[%emt 0:01:10]} Ra1+ {[%emt 0:00:48]} 35. Re1 {[%emt 0:00:06]} Ra3 {[%emt 0:01:14]} 36. Re3 {[%emt 0:00:07]} Ra1+ {[%emt 0:01:34]} 37. Re1 {[%emt 0:00:04]} Ra3 {[%emt 0:00:19]} 38. Re3 {[%emt 0:00:05]} Ra1+ {[%emt 0:00:21]} 1/2-1/2

[Event "Fagernes Chess Open 2025"]
[Site "Fagernes"]
[Date "2025.04.16"]
[Round "4.10"]
[White "Brattgjerd, August Minh"]
[Black "Gilsdottir, Sara"]
[Result "1-0"]
[Annotator "NA RC"]
[ECO "D00"]
[WhiteElo "1845"]
[BlackElo "1738"]
[PlyCount "61"]
[EventDate "2025.04.12"]
[EventCountry "NOR"]
[SourceTitle "playchess.com"]
[Source "ChessBase"]
[SourceQuality "1"]
[TimeControl "40/6000+30:2400+30"]

1. d4 {[%emt 0:05:49]} Nf6 {[%emt 0:00:10]} 2. Bf4 {[%emt 0:00:24]} d5 {[%emt 0:00:29]} 3. e3 {[%emt 0:00:27]} c5 {[%emt 0:01:02]} 4. c3 {[%emt 0:00:05]} Nc6 {[%emt 0:00:13]} 5. Bd3 {[%emt 0:00:29]} Qb6 {[%emt 0:00:37]} 6. Qb3 {[%emt 0:00:08]} c4 {[%emt 0:01:05]} 7. Qxb6 {[%emt 0:00:12]} axb6 {[%emt 0:00:07]} 8. Bc2 {[%emt 0:00:08]} b5 {[%emt 0:00:46]} 9. Nd2 {[%emt 0:00:35]} b4 {[%emt 0:01:07]} 10. Ne2 {[%emt 0:00:29]} b3 {[%emt 0:01:40]} 11. Bb1 {[%emt 0:01:16]} Bg4 {[%emt 0:07:49]} 12. f3 {[%emt 0:01:53]} Bh5 {[%emt 0:04:33]} 13. O-O {[%emt 0:00:50]} b5 {[%emt 0:03:21]} 14. e4 {[%emt 0:05:08]} e6 {[%emt 0:03:42]} 15. e5 {[%emt 0:00:29]} Nd7 {[%emt 0:00:12]} 16. g4 {[%emt 0:00:09]} Bxg4 {[%emt 0:27:45]} 17. fxg4 {[%emt 0:00:20]} b4 {[%emt 0:00:10]} 18. cxb4 {[%emt 0:03:00]} Bxb4 {[%emt 0:06:29]} 19. Rc1 {[%emt 0:15:57]} Nb6 {[%emt 0:08:33]} 20. Nxb3 {[%emt 0:10:12]} Nxe5 {[%emt 0:30:23]} 21. Bxe5 {[%emt 0:06:11]} cxb3 {[%emt 0:16:44]} 22. a3 {[%emt 0:16:35]} Bd2 {[%emt 0:00:00]} 23. Rc7 {[%emt 0:09:31]} Nc4 {[%emt 0:00:00]} 24. Bd3 {[%emt 0:01:17]} Nxb2 {[%emt 0:00:00]} 25. Bb5+ {[%emt 0:00:14]} Kd8 {[%emt 0:00:00]} 26. Rb1 {[%emt 0:01:09]} Nc4 {[%emt 0:00:00]} 27. Rd7+ {[%emt 0:01:48]} Kc8 {[%emt 0:00:00]} 28. Rxb3 {[%emt 0:00:30]} Nxe5 {[%emt 0:00:00]} 29. dxe5 {[%emt 0:00:21]} Rb8 {[%emt 0:00:00]} 30. Rxf7 {[%emt 0:00:52]} h5 {[%emt 0:00:00]} 31. Ba6+ {[%emt 0:00:20]} 1-0

[Event "Fagernes Chess Open 2025"]
[Site "Fagernes"]
[Date "2025.04.16"]
[Round "4.11"]
[White "Lang, Gusztav Jr"]
[Black "Odden, Jan Ove"]
[Result "0-1"]
[Annotator "NA RC"]
[ECO "C80"]
[WhiteElo "1729"]
[BlackElo "1720"]
[PlyCount "46"]
[EventDate "2025.04.12"]
[EventCountry "NOR"]
[SourceTitle "playchess.com"]
[Source "ChessBase"]
[SourceQuality "1"]
[TimeControl "40/6000+30:2400+30"]

1. e4 {[%emt 0:02:55]} e5 {[%emt 0:00:11]} 2. Nf3 {[%emt 0:00:38]} Nc6 {[%emt 0:00:15]} 3. Bb5 {[%emt 0:00:03]} a6 {[%emt 0:00:05]} 4. Ba4 {[%emt 0:00:07]} Nf6 {[%emt 0:00:28]} 5. O-O {[%emt 0:01:15]} Nxe4 {[%emt 0:00:17]} 6. Re1 {[%emt 0:02:34]} Nc5 {[%emt 0:01:51]} 7. Bxc6 {[%emt 0:09:09]} dxc6 {[%emt 0:01:26]} 8. Nxe5 {[%emt 0:00:56]} Be6 {[%emt 0:03:38]} 9. d4 {[%emt 0:04:15]} Nd7 {[%emt 0:01:15]} 10. Nxd7 {[%emt 0:19:17]} Qxd7 {[%emt 0:02:21]} 11. c4 {[%emt 0:01:10]} O-O-O {[%emt 0:00:48]} 12. d5 {[%emt 0:03:50]} cxd5 {[%emt 0:01:16]} 13. Qd4 {[%emt 0:01:50]} b6 {[%emt 0:04:07]} 14. cxd5 {[%emt 0:07:20]} Qxd5 {[%emt 0:03:28]} 15. Qa4 {[%emt 0:00:53]} Kb7 {[%emt 0:03:34]} 16. Nc3 {[%emt 0:00:31]} Qf5 {[%emt 0:08:23]} 17. Be3 {[%emt 0:02:04]} Bd7 {[%emt 0:04:21]} 18. Qh4 {[%emt 0:01:44]} Bd6 {[%emt 0:01:26]} 19. Ne4 {[%emt 0:02:20]} Bc6 {[%emt 0:06:29]} 20. Nxd6+ {[%emt 0:02:30]} Rxd6 {[%emt 0:01:43]} 21. Rac1 {[%emt 0:04:54]} Qd5 {[%emt 0:03:26]} 22. Qh3 {[%emt 0:02:58]} Rg6 {[%emt 0:01:24]} 23. Rxc6 {[%emt 0:06:18]} Rxc6 {[%emt 0:03:50]} 0-1

[Event "Fagernes Chess Open 2025"]
[Site "Fagernes"]
[Date "2025.04.16"]
[Round "4.12"]
[White "Kuzmenko, Mykhailo"]
[Black "Sigvaldsen, Sebastian"]
[Result "1-0"]
[Annotator "NA RC"]
[ECO "D05"]
[WhiteElo "1747"]
[BlackElo "1613"]
[PlyCount "121"]
[EventDate "2025.04.12"]
[EventCountry "NOR"]
[SourceTitle "playchess.com"]
[Source "ChessBase"]
[SourceQuality "1"]
[TimeControl "40/6000+30:2400+30"]

1. d4 {[%emt 0:00:04]} Nf6 {[%emt 0:00:15]} 2. Nf3 {[%emt 0:00:17]} e6 {[%emt 0:00:18]} 3. e3 {[%emt 0:00:22]} d5 {[%emt 0:00:51]} 4. Bd3 {[%emt 0:00:18]} Bd6 {[%emt 0:00:45]} 5. b3 {[%emt 0:00:24]} Nbd7 {[%emt 0:03:07]} 6. Bb2 {[%emt 0:00:14]} c6 {[%emt 0:02:16]} 7. Nbd2 {[%emt 0:00:29]} Qc7 {[%emt 0:01:26]} 8. c4 {[%emt 0:14:58]} b6 {[%emt 0:03:22]} 9. O-O {[%emt 0:01:21]} O-O {[%emt 0:00:25]} 10. Rc1 {[%emt 0:01:15]} Bb7 {[%emt 0:20:39]} 11. h3 {[%emt 0:09:01]} Rac8 {[%emt 0:04:11]} 12. cxd5 {[%emt 0:01:38]} exd5 {[%emt 0:00:18]} 13. Bf5 {[%emt 0:00:38]} g6 {[%emt 0:11:24]} 14. Bb1 {[%emt 0:03:54]} Rfe8 {[%emt 0:02:18]} 15. Ng5 {[%emt 0:04:14]} h6 {[%emt 0:11:15]} 16. Ngf3 {[%emt 0:00:14]} Ne4 {[%emt 0:03:01]} 17. Nxe4 {[%emt 0:01:23]} dxe4 {[%emt 0:00:10]} 18. Nd2 {[%emt 0:01:00]} f5 {[%emt 0:00:28]} 19. b4 {[%emt 0:09:25]} Bxb4 {[%emt 0:03:01]} 20. Qb3+ {[%emt 0:00:22]} Kh7 {[%emt 0:01:54]} 21. Qxb4 {[%emt 0:00:41]} Nf6 {[%emt 0:00:52]} 22. Nc4 {[%emt 0:02:11]} Rcd8 {[%emt 0:03:30]} 23. Ne5 {[%emt 0:02:08]} g5 {[%emt 0:03:36]} 24. Qc4 {[%emt 0:02:12]} Re7 {[%emt 0:02:26]} 25. Nxc6 {[%emt 0:03:45]} Bxc6 {[%emt 0:00:41]} 26. Qxc6 {[%emt 0:00:19]} Qxc6 {[%emt 0:01:08]} 27. Rxc6 {[%emt 0:00:08]} Nd5 {[%emt 0:01:03]} 28. a3 {[%emt 0:01:17]} Rdd7 {[%emt 0:02:01]} 29. Ba2 {[%emt 0:01:29]} Nc7 {[%emt 0:00:09]} 30. g3 {[%emt 0:03:41]} Nd5 {[%emt 0:03:55]} 31. Rfc1 {[%emt 0:01:40]} Kg7 {[%emt 0:00:56]} 32. Bxd5 {[%emt 0:02:43]} Rxd5 {[%emt 0:00:19]} 33. Rc7 {[%emt 0:00:06]} Rdd7 {[%emt 0:00:42]} 34. Rxd7 {[%emt 0:04:32]} Rxd7 {[%emt 0:00:10]} 35. d5+ {[%emt 0:00:04]} Kf7 {[%emt 0:00:52]} 36. Rd1 {[%emt 0:00:51]} b5 {[%emt 0:01:45]} 37. Bc3 {[%emt 0:06:03]} h5 {[%emt 0:02:26]} 38. g4 {[%emt 0:03:39]} hxg4 {[%emt 0:00:09]} 39. hxg4 {[%emt 0:00:02]} f4 {[%emt 0:00:15]} 40. exf4 {[%emt 0:04:03]} gxf4 {[%emt 0:00:15]} 41. Rd4 {[%emt 0:06:42]} Rd8 {[%emt 0:43:25]} 42. Rxe4 {[%emt 0:39:00]} Rxd5 {[%emt 0:00:09]} 43. Rxf4+ {[%emt 0:00:10]} Kg6 {[%emt 0:00:28]} 44. Rf6+ {[%emt 0:02:35]} Kg5 {[%emt 0:00:27]} 45. Rf5+ {[%emt 0:00:10]} Rxf5 {[%emt 0:00:08]} 46. gxf5 {[%emt 0:00:18]} Kxf5 {[%emt 0:00:03]} 47. Kg2 {[%emt 0:00:10]} Kg4 {[%emt 0:00:09]} 48. f3+ {[%emt 0:00:30]} Kf4 {[%emt 0:00:05]} 49. Bd2+ {[%emt 0:00:10]} Kf5 {[%emt 0:00:03]} 50. Kg3 {[%emt 0:00:18]} a6 {[%emt 0:00:04]} 51. f4 {[%emt 0:00:09]} Kf6 {[%emt 0:00:06]} 52. Kg4 {[%emt 0:00:06]} Kg6 {[%emt 0:00:15]} 53. f5+ {[%emt 0:00:02]} Kf6 {[%emt 0:00:10]} 54. Bc3+ {[%emt 0:00:07]} Kf7 {[%emt 0:00:05]} 55. Kg5 {[%emt 0:00:27]} a5 {[%emt 0:00:18]} 56. Bxa5 {[%emt 0:00:09]} Kg7 {[%emt 0:00:04]} 57. Bc3+ {[%emt 0:00:16]} Kf7 {[%emt 0:00:06]} 58. f6 {[%emt 0:00:07]} Kf8 {[%emt 0:00:50]} 59. Kg6 {[%emt 0:00:18]} Kg8 {[%emt 0:00:17]} 60. f7+ {[%emt 0:00:20]} Kf8 {[%emt 0:00:15]} 61. Bb4# {[%emt 0:00:08]} 1-0

[Event "Fagernes Chess Open 2025"]
[Site "Fagernes"]
[Date "2025.04.16"]
[Round "4.13"]
[White "Lien, Benjamin"]
[Black "Jorgensen, Catherine"]
[Result "0-1"]
[Annotator "NA RC"]
[ECO "C02"]
[WhiteElo "1733"]
[BlackElo "1609"]
[PlyCount "22"]
[EventDate "2025.04.12"]
[EventCountry "NOR"]
[SourceTitle "playchess.com"]
[Source "ChessBase"]
[SourceQuality "1"]
[TimeControl "40/6000+30:2400+30"]

1. e4 {[%emt 0:02:21]} e6 {[%emt 0:01:43]} 2. d4 {[%emt 0:00:11]} d5 {[%emt 0:00:06]} 3. e5 {[%emt 0:00:41]} c5 {[%emt 0:00:07]} 4. c3 {[%emt 0:00:05]} Nc6 {[%emt 0:00:07]} 5. Nf3 {[%emt 0:00:08]} Qb6 {[%emt 0:00:47]} 6. Bd3 {[%emt 0:00:20]} cxd4 {[%emt 0:00:24]} 7. cxd4 {[%emt 0:04:22]} Nxd4 {[%emt 0:02:33]} 8. Nxd4 {[%emt 0:00:09]} Bc5 {[%emt 0:01:34]} 9. Nb3 {[%emt 0:08:44]} Bxf2+ {[%emt 0:03:59]} 10. Ke2 {[%emt 0:00:36]} Bh4 {[%emt 0:02:14]} 11. Nc3 {[%emt 0:13:10]} Qf2# {[%emt 0:01:21]} 0-1

[Event "Fagernes Chess Open 2025"]
[Site "Fagernes"]
[Date "2025.04.16"]
[Round "4.14"]
[White "Smedsrud, Morten S"]
[Black "Ruud, Mikael"]
[Result "1/2-1/2"]
[Annotator "NA RC"]
[ECO "A23"]
[WhiteElo "1699"]
[BlackElo "1588"]
[PlyCount "60"]
[EventDate "2025.04.12"]
[EventCountry "NOR"]
[SourceTitle "playchess.com"]
[Source "ChessBase"]
[SourceQuality "1"]
[TimeControl "40/6000+30:2400+30"]

1. c4 {[%emt 0:01:18]} e5 {[%emt 0:00:07]} 2. g3 {[%emt 0:00:33]} Nf6 {[%emt 0:00:07]} 3. Bg2 {[%emt 0:00:59]} c6 {[%emt 0:00:15]} 4. Nc3 {[%emt 0:12:15]} d5 {[%emt 0:02:05]} 5. cxd5 {[%emt 0:02:48]} cxd5 {[%emt 0:00:44]} 6. d3 {[%emt 0:04:10]} Bb4 {[%emt 0:04:24]} 7. a3 {[%emt 0:06:56]} Bxc3+ {[%emt 0:01:00]} 8. bxc3 {[%emt 0:01:05]} h6 {[%emt 0:03:27]} 9. Nf3 {[%emt 0:07:28]} Nc6 {[%emt 0:01:41]} 10. O-O {[%emt 0:02:40]} O-O {[%emt 0:01:06]} 11. a4 {[%emt 0:05:34]} Bf5 {[%emt 0:07:18]} 12. a5 {[%emt 0:09:30]} a6 {[%emt 0:05:47]} 13. Qa4 {[%emt 0:06:04]} Qd7 {[%emt 0:05:40]} 14. Rd1 {[%emt 0:01:01]} Bh3 {[%emt 0:05:37]} 15. Bh1 {[%emt 0:01:34]} Qf5 {[%emt 0:12:43]} 16. Ba3 {[%emt 0:15:11]} Rfe8 {[%emt 0:03:33]} 17. Rab1 {[%emt 0:03:42]} Qd7 {[%emt 0:06:20]} 18. Rb6 {[%emt 0:05:45]} e4 {[%emt 0:03:48]} 19. Nd4 {[%emt 0:06:05]} Nxd4 {[%emt 0:11:37]} 20. Qxd4 {[%emt 0:01:21]} exd3 {[%emt 0:04:58]} 21. exd3 {[%emt 0:01:35]} Re6 {[%emt 0:02:48]} 22. Rdb1 {[%emt 0:02:06]} Rae8 {[%emt 0:02:14]} 23. Rxe6 {[%emt 0:01:15]} Rxe6 {[%emt 0:00:15]} 24. c4 {[%emt 0:04:40]} Qe8 {[%emt 0:02:39]} 25. Qc3 {[%emt 0:00:13]} d4 {[%emt 0:01:28]} 26. Qc1 {[%emt 0:01:09]} Re2 {[%emt 0:03:32]} 27. Bf3 {[%emt 0:02:08]} Re5 {[%emt 0:04:27]} 28. Bb2 {[%emt 0:00:46]} Qd7 {[%emt 0:01:23]} 29. Qf4 {[%emt 0:00:32]} Qe7 {[%emt 0:01:58]} 30. Qd2 {[%emt 0:00:55]} Rf5 {[%emt 0:02:05]} 1/2-1/2

[Event "Fagernes Chess Open 2025"]
[Site "Fagernes"]
[Date "2025.04.16"]
[Round "4.15"]
[White "Bollestad, Leiv Ove"]
[Black "Dybvik, Bjorn Noralf"]
[Result "1-0"]
[Annotator "NA RC"]
[ECO "C01"]
[WhiteElo "1585"]
[BlackElo "1686"]
[PlyCount "97"]
[EventDate "2025.04.12"]
[EventCountry "NOR"]
[SourceTitle "playchess.com"]
[Source "ChessBase"]
[SourceQuality "1"]
[TimeControl "40/6000+30:2400+30"]

1. e4 {[%emt 0:00:06]} e6 {[%emt 0:00:20]} 2. Nf3 {[%emt 0:00:31]} d5 {[%emt 0:00:25]} 3. exd5 {[%emt 0:00:37]} exd5 {[%emt 0:00:15]} 4. d4 {[%emt 0:00:17]} Nf6 {[%emt 0:00:51]} 5. Bd3 {[%emt 0:02:26]} Be7 {[%emt 0:01:59]} 6. O-O {[%emt 0:02:49]} O-O {[%emt 0:01:08]} 7. h3 {[%emt 0:02:27]} c5 {[%emt 0:01:45]} 8. dxc5 {[%emt 0:01:09]} Bxc5 {[%emt 0:00:29]} 9. b3 {[%emt 0:00:40]} Nc6 {[%emt 0:01:19]} 10. Bb2 {[%emt 0:00:09]} Be6 {[%emt 0:01:23]} 11. Nc3 {[%emt 0:02:03]} Rc8 {[%emt 0:02:20]} 12. a3 {[%emt 0:10:48]} a6 {[%emt 0:02:42]} 13. Ne2 {[%emt 0:02:57]} b5 {[%emt 0:02:50]} 14. a4 {[%emt 0:03:03]} Nb4 {[%emt 0:05:27]} 15. axb5 {[%emt 0:01:36]} axb5 {[%emt 0:00:53]} 16. Bd4 {[%emt 0:05:08]} Nxd3 {[%emt 0:04:21]} 17. Qxd3 {[%emt 0:03:08]} b4 {[%emt 0:05:52]} 18. Ra4 {[%emt 0:06:59]} Bxd4 {[%emt 0:02:38]} 19. Nexd4 {[%emt 0:00:31]} Rc3 {[%emt 0:05:20]} 20. Qd2 {[%emt 0:00:22]} Ne4 {[%emt 0:01:38]} 21. Qf4 {[%emt 0:06:18]} Qb8 {[%emt 0:03:15]} 22. Qh4 {[%emt 0:07:00]} Rfc8 {[%emt 0:02:50]} 23. Qe7 {[%emt 0:00:48]} Nc5 {[%emt 0:03:47]} 24. Ne5 {[%emt 0:15:19]} Re8 {[%emt 0:05:11]} 25. Rxb4 {[%emt 0:03:25]} Qc8 {[%emt 0:03:34]} 26. Qa7 {[%emt 0:04:41]} Ne4 {[%emt 0:06:10]} 27. Rb7 {[%emt 0:03:11]} Nd6 {[%emt 0:01:14]} 28. Re7 {[%emt 0:02:32]} Rxe7 {[%emt 0:04:20]} 29. Qxe7 {[%emt 0:00:08]} Nf5 {[%emt 0:01:19]} 30. Nxf5 {[%emt 0:00:57]} Bxf5 {[%emt 0:00:59]} 31. Qxf7+ {[%emt 0:00:11]} Kh8 {[%emt 0:00:28]} 32. Qxd5 {[%emt 0:01:45]} Be6 {[%emt 0:01:32]} 33. Qd6 {[%emt 0:02:44]} Rxc2 {[%emt 0:03:00]} 34. Rd1 {[%emt 0:00:36]} Rc1 {[%emt 0:04:32]} 35. Kh2 {[%emt 0:03:12]} Rxd1 {[%emt 0:01:44]} 36. Qxd1 {[%emt 0:00:14]} h6 {[%emt 0:02:11]} 37. b4 {[%emt 0:04:01]} Qc3 {[%emt 0:02:19]} 38. Qd6 {[%emt 0:00:56]} Bb3 {[%emt 0:02:41]} 39. b5 {[%emt 0:01:43]} Qe1 {[%emt 0:01:55]} 40. Qc5 {[%emt 0:02:00]} Qe4 {[%emt 0:02:01]} 41. Qe3 {[%emt 0:40:59]} Qc2 {[%emt 0:41:14]} 42. b6 {[%emt 0:01:56]} Bd5 {[%emt 0:01:11]} 43. f3 {[%emt 0:02:02]} Qc8 {[%emt 0:01:29]} 44. Ng6+ {[%emt 0:00:29]} Kh7 {[%emt 0:00:59]} 45. Ne7 {[%emt 0:00:10]} Qb8+ {[%emt 0:00:59]} 46. g3 {[%emt 0:01:31]} Bxf3 {[%emt 0:03:22]} 47. Qxf3 {[%emt 0:02:35]} Qxb6 {[%emt 0:01:39]} 48. Qf5+ {[%emt 0:00:13]} Kh8 {[%emt 0:00:40]} 49. Qf8+ {[%emt 0:00:15]} 1-0

[Event "Fagernes Chess Open 2025"]
[Site "Fagernes"]
[Date "2025.04.16"]
[Round "4.16"]
[White "Andersen, Even Jorstad"]
[Black "Nebell, Anne Grete"]
[Result "1-0"]
[Annotator "NA RC"]
[ECO "C90"]
[WhiteElo "1681"]
[BlackElo "1561"]
[PlyCount "65"]
[EventDate "2025.04.12"]
[EventCountry "NOR"]
[SourceTitle "playchess.com"]
[Source "ChessBase"]
[SourceQuality "1"]
[TimeControl "40/6000+30:2400+30"]

1. e4 {[%emt 0:01:16]} e5 {[%emt 0:00:08]} 2. Nf3 {[%emt 0:00:04]} Nc6 {[%emt 0:00:07]} 3. Bc4 {[%emt 0:00:03]} Nf6 {[%emt 0:00:19]} 4. d3 {[%emt 0:00:07]} Be7 {[%emt 0:00:22]} 5. O-O {[%emt 0:01:47]} O-O {[%emt 0:00:36]} 6. Re1 {[%emt 0:00:52]} d6 {[%emt 0:00:35]} 7. c3 {[%emt 0:01:17]} Na5 {[%emt 0:02:38]} 8. Bb5 {[%emt 0:01:08]} a6 {[%emt 0:00:12]} 9. Ba4 {[%emt 0:00:06]} b5 {[%emt 0:00:04]} 10. Bc2 {[%emt 0:00:10]} c5 {[%emt 0:00:33]} 11. Nbd2 {[%emt 0:04:30]} Re8 {[%emt 0:02:48]} 12. Nf1 {[%emt 0:01:31]} h6 {[%emt 0:01:35]} 13. Be3 {[%emt 0:04:22]} Ng4 {[%emt 0:03:20]} 14. Qe2 {[%emt 0:02:02]} Nxe3 {[%emt 0:00:36]} 15. Nxe3 {[%emt 0:00:19]} Nc6 {[%emt 0:02:46]} 16. Rad1 {[%emt 0:03:01]} Qb6 {[%emt 0:01:18]} 17. d4 {[%emt 0:11:46]} cxd4 {[%emt 0:02:28]} 18. cxd4 {[%emt 0:01:28]} Nxd4 {[%emt 0:03:28]} 19. Nxd4 {[%emt 0:00:06]} exd4 {[%emt 0:00:09]} 20. Nd5 {[%emt 0:00:13]} Qc5 {[%emt 0:01:01]} 21. Bb3 {[%emt 0:03:18]} Bg5 {[%emt 0:02:46]} 22. h4 {[%emt 0:00:58]} Bxh4 {[%emt 0:07:50]} 23. Qh5 {[%emt 0:10:54]} Bxf2+ {[%emt 0:06:36]} 24. Kxf2 {[%emt 0:00:37]} d3+ {[%emt 0:00:45]} 25. Kf1 {[%emt 0:01:28]} Qd4 {[%emt 0:05:40]} 26. Nc7 {[%emt 0:06:13]} Rxe4 {[%emt 0:04:25]} 27. Qxf7+ {[%emt 0:00:36]} Kh7 {[%emt 0:00:20]} 28. Rxe4 {[%emt 0:02:26]} Qxe4 {[%emt 0:00:30]} 29. Nxa8 {[%emt 0:02:12]} Bg4 {[%emt 0:01:33]} 30. Re1 {[%emt 0:01:14]} Be2+ {[%emt 0:00:23]} 31. Kg1 {[%emt 0:00:45]} d2 {[%emt 0:02:36]} 32. Rxe2 {[%emt 0:01:17]} Qxe2 {[%emt 0:01:55]} 33. Bc2+ {[%emt 0:00:06]} 1-0

[Event "Fagernes Chess Open 2025"]
[Site "Fagernes"]
[Date "2025.04.16"]
[Round "4.17"]
[White "Vatneodegard, Marie"]
[Black "Skotheim, Havard"]
[Result "1-0"]
[Annotator "NA RC"]
[ECO "B31"]
[WhiteElo "1538"]
[BlackElo "1548"]
[PlyCount "69"]
[EventDate "2025.04.12"]
[EventCountry "NOR"]
[SourceTitle "playchess.com"]
[Source "ChessBase"]
[SourceQuality "1"]
[TimeControl "40/6000+30:2400+30"]

1. e4 {[%emt 0:00:04]} c5 {[%emt 0:00:14]} 2. Nf3 {[%emt 0:00:26]} Nc6 {[%emt 0:00:47]} 3. Bb5 {[%emt 0:00:24]} g6 {[%emt 0:03:00]} 4. O-O {[%emt 0:01:04]} Bg7 {[%emt 0:00:49]} 5. c3 {[%emt 0:00:19]} d5 {[%emt 0:02:24]} 6. e5 {[%emt 0:10:16]} Qc7 {[%emt 0:10:01]} 7. d4 {[%emt 0:02:44]} a6 {[%emt 0:06:42]} 8. Bxc6+ {[%emt 0:10:34]} Qxc6 {[%emt 0:00:23]} 9. Bf4 {[%emt 0:00:20]} Bg4 {[%emt 0:06:13]} 10. h3 {[%emt 0:07:44]} Bxf3 {[%emt 0:00:52]} 11. Qxf3 {[%emt 0:00:14]} e6 {[%emt 0:00:37]} 12. Nd2 {[%emt 0:13:39]} b5 {[%emt 0:02:30]} 13. Nb3 {[%emt 0:04:15]} cxd4 {[%emt 0:03:50]} 14. cxd4 {[%emt 0:00:39]} Ne7 {[%emt 0:01:17]} 15. Rac1 {[%emt 0:01:02]} Qb6 {[%emt 0:01:09]} 16. Rc5 {[%emt 0:09:39]} O-O {[%emt 0:02:00]} 17. Rfc1 {[%emt 0:00:32]} Rac8 {[%emt 0:08:28]} 18. Rxc8 {[%emt 0:04:32]} Rxc8 {[%emt 0:00:36]} 19. Rxc8+ {[%emt 0:00:40]} Nxc8 {[%emt 0:00:06]} 20. Qc3 {[%emt 0:00:36]} Qb8 {[%emt 0:06:27]} 21. Qc6 {[%emt 0:04:00]} Nb6 {[%emt 0:02:54]} 22. Nc5 {[%emt 0:02:59]} Nc4 {[%emt 0:11:01]} 23. Qxa6 {[%emt 0:04:58]} h6 {[%emt 0:03:12]} 24. Bg3 {[%emt 0:04:24]} Nxb2 {[%emt 0:01:09]} 25. Nd7 {[%emt 0:02:15]} Qd8 {[%emt 0:03:06]} 26. Qxb5 {[%emt 0:00:56]} Nc4 {[%emt 0:02:22]} 27. a4 {[%emt 0:04:03]} g5 {[%emt 0:06:31]} 28. Qc6 {[%emt 0:01:52]} Na5 {[%emt 0:01:23]} 29. Qb5 {[%emt 0:01:30]} Nc4 {[%emt 0:00:55]} 30. f3 {[%emt 0:01:26]} Bf8 {[%emt 0:05:37]} 31. Be1 {[%emt 0:02:01]} Be7 {[%emt 0:04:52]} 32. a5 {[%emt 0:01:41]} Qc7 {[%emt 0:03:59]} 33. a6 {[%emt 0:02:45]} Qa7 {[%emt 0:03:22]} 34. Bf2 {[%emt 0:04:07]} Kg7 {[%emt 0:01:23]} 35. Qb7 {[%emt 0:03:15]} 1-0

[Event "Fagernes Chess Open 2025"]
[Site "Fagernes"]
[Date "2025.04.16"]
[Round "4.18"]
[White "Warstad, Leif E"]
[Black "Jullum, Hege Ibsen"]
[Result "1/2-1/2"]
[Annotator "NA RC"]
[ECO "B07"]
[WhiteElo "1606"]
[BlackElo "1484"]
[PlyCount "55"]
[EventDate "2025.04.12"]
[EventCountry "NOR"]
[SourceTitle "playchess.com"]
[Source "ChessBase"]
[SourceQuality "1"]
[TimeControl "40/6000+30:2400+30"]

1. d4 {[%emt 0:00:05]} d6 {[%emt 0:00:03]} 2. e4 {[%emt 0:00:10]} Nf6 {[%emt 0:00:17]} 3. Nc3 {[%emt 0:00:19]} e5 {[%emt 0:00:34]} 4. dxe5 {[%emt 0:10:00]} dxe5 {[%emt 0:00:46]} 5. Qxd8+ {[%emt 0:01:03]} Kxd8 {[%emt 0:00:09]} 6. Bg5 {[%emt 0:00:40]} c6 {[%emt 0:00:27]} 7. O-O-O+ {[%emt 0:00:23]} Kc7 {[%emt 0:00:14]} 8. Nge2 {[%emt 0:03:50]} Bc5 {[%emt 0:01:15]} 9. f3 {[%emt 0:01:43]} Be6 {[%emt 0:00:58]} 10. Kb1 {[%emt 0:00:43]} Nbd7 {[%emt 0:01:04]} 11. Nc1 {[%emt 0:02:41]} h6 {[%emt 0:02:11]} 12. Bh4 {[%emt 0:01:05]} Nh5 {[%emt 0:03:08]} 13. Nd3 {[%emt 0:04:31]} Bb6 {[%emt 0:04:01]} 14. Bf2 {[%emt 0:11:30]} Rhd8 {[%emt 0:11:56]} 15. g3 {[%emt 0:05:17]} g5 {[%emt 0:13:50]} 16. Be2 {[%emt 0:01:55]} f6 {[%emt 0:04:53]} 17. f4 {[%emt 0:07:50]} Ng7 {[%emt 0:03:11]} 18. Bxb6+ {[%emt 0:06:48]} axb6 {[%emt 0:00:53]} 19. f5 {[%emt 0:00:35]} Bf7 {[%emt 0:01:17]} 20. g4 {[%emt 0:06:12]} b5 {[%emt 0:01:47]} 21. Nb4 {[%emt 0:02:53]} h5 {[%emt 0:01:26]} 22. h3 {[%emt 0:01:32]} h4 {[%emt 0:05:31]} 23. Rd2 {[%emt 0:03:32]} Nc5 {[%emt 0:02:49]} 24. Rhd1 {[%emt 0:00:34]} Rxd2 {[%emt 0:00:22]} 25. Rxd2 {[%emt 0:00:10]} Na6 {[%emt 0:03:03]} 26. a3 {[%emt 0:04:10]} Nxb4 {[%emt 0:01:17]} 27. axb4 {[%emt 0:01:59]} Ne8 {[%emt 0:00:18]} 28. Kc1 {[%emt 0:00:18]} 1/2-1/2